Workbook

Sheet 工作表1
A1: 國中基測總成績列表
A2: 編號 | B2: 就讀學校 | C2: 國文 | D2: 英文 | E2: 數學 | F2: 社會 | G2: 自然 | H2: 作文 | I2: 總分 | J2: 名次
A3: 1 | B3: 金華國中 | C3: 61 | D3: 64 | E3: 76 | F3: 64 | G3: 68 | H3: 4 | I3: =SUM(C3:G3)+H3*2 -> 341 | J3: 61
A4: 2 | B4: 金華國中 | C4: 71 | D4: 64 | E4: 64 | F4: 52 | G4: 75 | H4: 5 | I4: =SUM(C4:G4)+H4*2 -> 336 | J4: 79
A5: 3 | B5: 金華國中 | C5: 61 | D5: 49 | E5: 79 | F5: 77 | G5: 69 | H5: 5 | I5: =SUM(C5:G5)+H5*2 -> 345 | J5: 49
A6: 4 | B6: 金華國中 | C6: 75 | D6: 51 | E6: 80 | F6: 70 | G6: 53 | H6: 4 | I6: =SUM(C6:G6)+H6*2 -> 337 | J6: 72
A7: 5 | B7: 金華國中 | C7: 80 | D7: 78 | E7: 76 | F7: 77 | G7: 80 | H7: 3 | I7: =SUM(C7:G7)+H7*2 -> 397 | J7: 13
A8: 6 | B8: 金華國中 | C8: 76 | D8: 72 | E8: 62 | F8: 74 | G8: 57 | H8: 2 | I8: =SUM(C8:G8)+H8*2 -> 345 | J8: 51
A9: 7 | B9: 金華國中 | C9: 66 | D9: 60 | E9: 75 | F9: 65 | G9: 66 | H9: 6 | I9: =SUM(C9:G9)+H9*2 -> 344 | J9: 52
A10: 8 | B10: 金華國中 | C10: 73 | D10: 62 | E10: 56 | F10: 72 | G10: 76 | H10: 4 | I10: =SUM(C10:G10)+H10*2 -> 347 | J10: 45
A11: 9 | B11: 金華國中 | C11: 73 | D11: 60 | E11: 50 | F11: 80 | G11: 61 | H11: 2 | I11: =SUM(C11:G11)+H11*2 -> 328 | J11: 104
A12: 10 | B12: 金華國中 | C12: 55 | D12: 77 | E12: 64 | F12: 67 | G12: 50 | H12: 5 | I12: =SUM(C12:G12)+H12*2 -> 323 | J12: 112
A13: 11 | B13: 金華國中 | C13: 54 | D13: 64 | E13: 55 | F13: 57 | G13: 60 | H13: 5 | I13: =SUM(C13:G13)+H13*2 -> 300 | J13: 149
A14: 12 | B14: 金華國中 | C14: 50 | D14: 79 | E14: 77 | F14: 38 | G14: 74 | H14: 5 | I14: =SUM(C14:G14)+H14*2 -> 328 | J14: 101
A15: 13 | B15: 金華國中 | C15: 52 | D15: 58 | E15: 79 | F15: 58 | G15: 53 | H15: 4 | I15: =SUM(C15:G15)+H15*2 -> 308 | J15: 142
A16: 14 | B16: 金華國中 | C16: 62 | D16: 69 | E16: 60 | F16: 55 | G16: 34 | H16: 4 | I16: =SUM(C16:G16)+H16*2 -> 288 | J16: 158
A17: 15 | B17: 金華國中 | C17: 64 | D17: 60 | E17: 78 | F17: 67 | G17: 62 | H17: 5 | I17: =SUM(C17:G17)+H17*2 -> 341 | J17: 60
A18: 16 | B18: 金華國中 | C18: 66 | D18: 54 | E18: 72 | F18: 64 | G18: 59 | H18: 3 | I18: =SUM(C18:G18)+H18*2 -> 321 | J18: 117
A19: 17 | B19: 金華國中 | C19: 58 | D19: 79 | E19: 75 | F19: 58 | G19: 54 | H19: 3 | I19: =SUM(C19:G19)+H19*2 -> 330 | J19: 98
A20: 18 | B20: 金華國中 | C20: 42 | D20: 57 | E20: 66 | F20: 52 | G20: 68 | H20: 4 | I20: =SUM(C20:G20)+H20*2 -> 293 | J20: 154
A21: 19 | B21: 金華國中 | C21: 61 | D21: 63 | E21: 66 | F21: 60 | G21: 55 | H21: 6 | I21: =SUM(C21:G21)+H21*2 -> 317 | J21: 127
A22: 20 | B22: 金華國中 | C22: 77 | D22: 58 | E22: 56 | F22: 59 | G22: 62 | H22: 3 | I22: =SUM(C22:G22)+H22*2 -> 318 | J22: 126
A23: 21 | B23: 金華國中 | C23: 80 | D23: 80 | E23: 78 | F23: 76 | G23: 80 | H23: 6 | I23: =SUM(C23:G23)+H23*2 -> 406 | J23: 10
A24: 22 | B24: 金華國中 | C24: 59 | D24: 78 | E24: 59 | F24: 55 | G24: 50 | H24: 3 | I24: =SUM(C24:G24)+H24*2 -> 307 | J24: 144
A25: 23 | B25: 金華國中 | C25: 68 | D25: 61 | E25: 52 | F25: 66 | G25: 57 | H25: 3 | I25: =SUM(C25:G25)+H25*2 -> 310 | J25: 139
A26: 24 | B26: 金華國中 | C26: 77 | D26: 66 | E26: 54 | F26: 63 | G26: 56 | H26: 4 | I26: =SUM(C26:G26)+H26*2 -> 324 | J26: 111
A27: 25 | B27: 金華國中 | C27: 63 | D27: 80 | E27: 59 | F27: 66 | G27: 73 | H27: 4 | I27: =SUM(C27:G27)+H27*2 -> 349 | J27: 43
A28: 26 | B28: 金華國中 | C28: 75 | D28: 76 | E28: 56 | F28: 71 | G28: 77 | H28: 3 | I28: =SUM(C28:G28)+H28*2 -> 361 | J28: 24
A29: 27 | B29: 金華國中 | C29: 61 | D29: 76 | E29: 75 | F29: 62 | G29: 76 | H29: 6 | I29: =SUM(C29:G29)+H29*2 -> 362 | J29: 23
A30: 28 | B30: 金華國中 | C30: 57 | D30: 50 | E30: 51 | F30: 55 | G30: 67 | H30: 6 | I30: =SUM(C30:G30)+H30*2 -> 292 | J30: 157
A31: 29 | B31: 金華國中 | C31: 70 | D31: 50 | E31: 65 | F31: 73 | G31: 51 | H31: 5 | I31: =SUM(C31:G31)+H31*2 -> 319 | J31: 123
A32: 30 | B32: 金華國中 | C32: 58 | D32: 70 | E32: 59 | F32: 66 | G32: 73 | H32: 4 | I32: =SUM(C32:G32)+H32*2 -> 334 | J32: 83
A33: 31 | B33: 金華國中 | C33: 66 | D33: 56 | E33: 58 | F33: 66 | G33: 64 | H33: 6 | I33: =SUM(C33:G33)+H33*2 -> 322 | J33: 115
A34: 32 | B34: 金華國中 | C34: 65 | D34: 62 | E34: 74 | F34: 69 | G34: 64 | H34: 3 | I34: =SUM(C34:G34)+H34*2 -> 340 | J34: 63
A35: 33 | B35: 金華國中 | C35: 59 | D35: 59 | E35: 58 | F35: 62 | G35: 72 | H35: 5 | I35: =SUM(C35:G35)+H35*2 -> 320 | J35: 118
A36: 34 | B36: 金華國中 | C36: 74 | D36: 53 | E36: 51 | F36: 75 | G36: 76 | H36: 6 | I36: =SUM(C36:G36)+H36*2 -> 341 | J36: 59
A37: 35 | B37: 金華國中 | C37: 64 | D37: 64 | E37: 69 | F37: 68 | G37: 79 | H37: 1 | I37: =SUM(C37:G37)+H37*2 -> 346 | J37: 47
A38: 36 | B38: 金華國中 | C38: 61 | D38: 65 | E38: 60 | F38: 75 | G38: 50 | H38: 2 | I38: =SUM(C38:G38)+H38*2 -> 315 | J38: 133
A39: 37 | B39: 金華國中 | C39: 63 | D39: 67 | E39: 63 | F39: 58 | G39: 66 | H39: 1 | I39: =SUM(C39:G39)+H39*2 -> 319 | J39: 125
A40: 38 | B40: 金華國中 | C40: 63 | D40: 74 | E40: 75 | F40: 76 | G40: 78 | H40: 5 | I40: =SUM(C40:G40)+H40*2 -> 376 | J40: 16
A41: 39 | B41: 金華國中 | C41: 71 | D41: 74 | E41: 50 | F41: 70 | G41: 63 | H41: 1 | I41: =SUM(C41:G41)+H41*2 -> 330 | J41: 99
A42: 40 | B42: 金華國中 | C42: 74 | D42: 56 | E42: 66 | F42: 70 | G42: 67 | H42: 2 | I42: =SUM(C42:G42)+H42*2 -> 337 | J42: 74
A43: 41 | B43: 金華國中 | C43: 80 | D43: 65 | E43: 68 | F43: 69 | G43: 73 | H43: 1 | I43: =SUM(C43:G43)+H43*2 -> 357 | J43: 27
A44: 42 | B44: 金華國中 | C44: 80 | D44: 80 | E44: 80 | F44: 78 | G44: 80 | H44: 5 | I44: =SUM(C44:G44)+H44*2 -> 408 | J44: 7
A45: 43 | B45: 金華國中 | C45: 57 | D45: 73 | E45: 57 | F45: 66 | G45: 77 | H45: 2 | I45: =SUM(C45:G45)+H45*2 -> 334 | J45: 84
A46: 44 | B46: 金華國中 | C46: 52 | D46: 54 | E46: 58 | F46: 71 | G46: 53 | H46: 3 | I46: =SUM(C46:G46)+H46*2 -> 294 | J46: 152
A47: 45 | B47: 金華國中 | C47: 57 | D47: 56 | E47: 50 | F47: 59 | G47: 50 | H47: 6 | I47: =SUM(C47:G47)+H47*2 -> 284 | J47: 160
A48: 46 | B48: 金華國中 | C48: 52 | D48: 63 | E48: 75 | F48: 80 | G48: 55 | H48: 2 | I48: =SUM(C48:G48)+H48*2 -> 329 | J48: 100
A49: 47 | B49: 金華國中 | C49: 73 | D49: 63 | E49: 60 | F49: 54 | G49: 58 | H49: 2 | I49: =SUM(C49:G49)+H49*2 -> 312 | J49: 137
A50: 48 | B50: 金華國中 | C50: 78 | D50: 65 | E50: 52 | F50: 80 | G50: 67 | H50: 5 | I50: =SUM(C50:G50)+H50*2 -> 352 | J50: 39
A51: 49 | B51: 金華國中 | C51: 72 | D51: 55 | E51: 61 | F51: 69 | G51: 71 | H51: 5 | I51: =SUM(C51:G51)+H51*2 -> 338 | J51: 68
A52: 50 | B52: 金華國中 | C52: 52 | D52: 65 | E52: 74 | F52: 70 | G52: 68 | H52: 4 | I52: =SUM(C52:G52)+H52*2 -> 337 | J52: 72
A53: 51 | B53: 金華國中 | C53: 62 | D53: 77 | E53: 70 | F53: 73 | G53: 76 | H53: 5 | I53: =SUM(C53:G53)+H53*2 -> 368 | J53: 19
A54: 52 | B54: 金華國中 | C54: 73 | D54: 65 | E54: 68 | F54: 73 | G54: 71 | H54: 1 | I54: =SUM(C54:G54)+H54*2 -> 352 | J54: 41
A55: 53 | B55: 金華國中 | C55: 60 | D55: 58 | E55: 55 | F55: 53 | G55: 79 | H55: 5 | I55: =SUM(C55:G55)+H55*2 -> 315 | J55: 132
A56: 54 | B56: 金華國中 | C56: 68 | D56: 62 | E56: 64 | F56: 70 | G56: 54 | H56: 1 | I56: =SUM(C56:G56)+H56*2 -> 320 | J56: 120
A57: 55 | B57: 金華國中 | C57: 77 | D57: 65 | E57: 54 | F57: 60 | G57: 79 | H57: 1 | I57: =SUM(C57:G57)+H57*2 -> 337 | J57: 77
A58: 56 | B58: 金華國中 | C58: 60 | D58: 53 | E58: 72 | F58: 51 | G58: 61 | H58: 5 | I58: =SUM(C58:G58)+H58*2 -> 307 | J58: 143
A59: 57 | B59: 金華國中 | C59: 58 | D59: 77 | E59: 67 | F59: 72 | G59: 80 | H59: 1 | I59: =SUM(C59:G59)+H59*2 -> 356 | J59: 31
A60: 58 | B60: 金華國中 | C60: 57 | D60: 62 | E60: 62 | F60: 62 | G60: 62 | H60: 4 | I60: =SUM(C60:G60)+H60*2 -> 313 | J60: 136
A61: 59 | B61: 金華國中 | C61: 77 | D61: 68 | E61: 60 | F61: 66 | G61: 70 | H61: 3 | I61: =SUM(C61:G61)+H61*2 -> 347 | J61: 46
A62: 60 | B62: 金華國中 | C62: 73 | D62: 71 | E62: 62 | F62: 59 | G62: 50 | H62: 5 | I62: =SUM(C62:G62)+H62*2 -> 325 | J62: 109
A63: 61 | B63: 金華國中 | C63: 52 | D63: 58 | E63: 77 | F63: 57 | G63: 63 | H63: 6 | I63: =SUM(C63:G63)+H63*2 -> 319 | J63: 121
A64: 62 | B64: 金華國中 | C64: 57 | D64: 56 | E64: 53 | F64: 68 | G64: 58 | H64: 1 | I64: =SUM(C64:G64)+H64*2 -> 294 | J64: 153
A65: 63 | B65: 金華國中 | C65: 66 | D65: 58 | E65: 63 | F65: 66 | G65: 72 | H65: 3 | I65: =SUM(C65:G65)+H65*2 -> 331 | J65: 94
A66: 64 | B66: 金華國中 | C66: 75 | D66: 58 | E66: 59 | F66: 67 | G66: 54 | H66: 2 | I66: =SUM(C66:G66)+H66*2 -> 317 | J66: 129
A67: 65 | B67: 金華國中 | C67: 79 | D67: 79 | E67: 55 | F67: 75 | G67: 77 | H67: 1 | I67: =SUM(C67:G67)+H67*2 -> 367 | J67: 21
A68: 66 | B68: 金華國中 | C68: 68 | D68: 60 | E68: 61 | F68: 52 | G68: 56 | H68: 3 | I68: =SUM(C68:G68)+H68*2 -> 303 | J68: 147
A69: 67 | B69: 金華國中 | C69: 61 | D69: 77 | E69: 73 | F69: 51 | G69: 72 | H69: 4 | I69: =SUM(C69:G69)+H69*2 -> 342 | J69: 57
A70: 68 | B70: 金華國中 | C70: 61 | D70: 61 | E70: 71 | F70: 60 | G70: 80 | H70: 5 | I70: =SUM(C70:G70)+H70*2 -> 343 | J70: 53
A71: 69 | B71: 金華國中 | C71: 60 | D71: 62 | E71: 50 | F71: 72 | G71: 57 | H71: 3 | I71: =SUM(C71:G71)+H71*2 -> 307 | J71: 144
A72: 70 | B72: 金華國中 | C72: 68 | D72: 64 | E72: 71 | F72: 57 | G72: 73 | H72: 2 | I72: =SUM(C72:G72)+H72*2 -> 337 | J72: 74
A73: 71 | B73: 金華國中 | C73: 69 | D73: 50 | E73: 80 | F73: 67 | G73: 66 | H73: 4 | I73: =SUM(C73:G73)+H73*2 -> 340 | J73: 62
A74: 72 | B74: 金華國中 | C74: 77 | D74: 77 | E74: 69 | F74: 70 | G74: 58 | H74: 3 | I74: =SUM(C74:G74)+H74*2 -> 357 | J74: 26
A75: 73 | B75: 金華國中 | C75: 58 | D75: 76 | E75: 55 | F75: 65 | G75: 75 | H75: 3 | I75: =SUM(C75:G75)+H75*2 -> 335 | J75: 81
A76: 74 | B76: 金華國中 | C76: 56 | D76: 70 | E76: 54 | F76: 74 | G76: 64 | H76: 6 | I76: =SUM(C76:G76)+H76*2 -> 330 | J76: 97
A77: 75 | B77: 金華國中 | C77: 62 | D77: 67 | E77: 68 | F77: 63 | G77: 64 | H77: 1 | I77: =SUM(C77:G77)+H77*2 -> 326 | J77: 108
A78: 76 | B78: 金華國中 | C78: 71 | D78: 74 | E78: 65 | F78: 65 | G78: 66 | H78: 1 | I78: =SUM(C78:G78)+H78*2 -> 343 | J78: 56
A79: 77 | B79: 金華國中 | C79: 65 | D79: 55 | E79: 75 | F79: 80 | G79: 74 | H79: 5 | I79: =SUM(C79:G79)+H79*2 -> 359 | J79: 25
A80: 78 | B80: 金華國中 | C80: 50 | D80: 52 | E80: 80 | F80: 78 | G80: 66 | H80: 1 | I80: =SUM(C80:G80)+H80*2 -> 328 | J80: 106
A81: 79 | B81: 金華國中 | C81: 64 | D81: 63 | E81: 79 | F81: 70 | G81: 70 | H81: 4 | I81: =SUM(C81:G81)+H81*2 -> 354 | J81: 35
A82: 80 | B82: 金華國中 | C82: 53 | D82: 73 | E82: 74 | F82: 70 | G82: 54 | H82: 5 | I82: =SUM(C82:G82)+H82*2 -> 334 | J82: 82
A83: 81 | B83: 金華國中 | C83: 65 | D83: 72 | E83: 52 | F83: 74 | G83: 56 | H83: 2 | I83: =SUM(C83:G83)+H83*2 -> 323 | J83: 114
A84: 82 | B84: 金華國中 | C84: 73 | D84: 71 | E84: 67 | F84: 63 | G84: 74 | H84: 4 | I84: =SUM(C84:G84)+H84*2 -> 356 | J84: 30
A85: 83 | B85: 金華國中 | C85: 72 | D85: 63 | E85: 74 | F85: 80 | G85: 64 | H85: 1 | I85: =SUM(C85:G85)+H85*2 -> 355 | J85: 32
A86: 84 | B86: 金華國中 | C86: 63 | D86: 76 | E86: 51 | F86: 67 | G86: 64 | H86: 6 | I86: =SUM(C86:G86)+H86*2 -> 333 | J86: 86
A87: 85 | B87: 金華國中 | C87: 72 | D87: 75 | E87: 72 | F87: 51 | G87: 74 | H87: 5 | I87: =SUM(C87:G87)+H87*2 -> 354 | J87: 34
A88: 86 | B88: 金華國中 | C88: 50 | D88: 65 | E88: 71 | F88: 64 | G88: 60 | H88: 2 | I88: =SUM(C88:G88)+H88*2 -> 314 | J88: 135
A89: 87 | B89: 金華國中 | C89: 51 | D89: 74 | E89: 63 | F89: 52 | G89: 75 | H89: 4 | I89: =SUM(C89:G89)+H89*2 -> 323 | J89: 113
A90: 88 | B90: 金華國中 | C90: 78 | D90: 78 | E90: 80 | F90: 80 | G90: 80 | H90: 6 | I90: =SUM(C90:G90)+H90*2 -> 408 | J90: 4
A91: 89 | B91: 金華國中 | C91: 69 | D91: 67 | E91: 51 | F91: 55 | G91: 54 | H91: 1 | I91: =SUM(C91:G91)+H91*2 -> 298 | J91: 151
A92: 90 | B92: 金華國中 | C92: 50 | D92: 57 | E92: 80 | F92: 52 | G92: 79 | H92: 5 | I92: =SUM(C92:G92)+H92*2 -> 328 | J92: 101
A93: 91 | B93: 金華國中 | C93: 73 | D93: 50 | E93: 78 | F93: 54 | G93: 78 | H93: 5 | I93: =SUM(C93:G93)+H93*2 -> 343 | J93: 53
A94: 92 | B94: 金華國中 | C94: 65 | D94: 68 | E94: 73 | F94: 78 | G94: 60 | H94: 2 | I94: =SUM(C94:G94)+H94*2 -> 348 | J94: 44
A95: 93 | B95: 金華國中 | C95: 74 | D95: 76 | E95: 66 | F95: 75 | G95: 54 | H95: 4 | I95: =SUM(C95:G95)+H95*2 -> 353 | J95: 36
A96: 94 | B96: 金華國中 | C96: 78 | D96: 80 | E96: 78 | F96: 80 | G96: 80 | H96: 6 | I96: =SUM(C96:G96)+H96*2 -> 408 | J96: 4
A97: 95 | B97: 金華國中 | C97: 77 | D97: 72 | E97: 56 | F97: 64 | G97: 71 | H97: 5 | I97: =SUM(C97:G97)+H97*2 -> 350 | J97: 42
A98: 96 | B98: 金華國中 | C98: 54 | D98: 59 | E98: 53 | F98: 57 | G98: 68 | H98: 1 | I98: =SUM(C98:G98)+H98*2 -> 293 | J98: 155
A99: 97 | B99: 金華國中 | C99: 54 | D99: 73 | E99: 69 | F99: 69 | G99: 75 | H99: 1 | I99: =SUM(C99:G99)+H99*2 -> 342 | J99: 58
A100: 98 | B100: 金華國中 | C100: 61 | D100: 79 | E100: 52 | F100: 59 | G100: 58 | H100: 5 | I100: =SUM(C100:G100)+H100*2 -> 319 | J100: 123
A101: 99 | B101: 金華國中 | C101: 77 | D101: 54 | E101: 54 | F101: 62 | G101: 60 | H101: 5 | I101: =SUM(C101:G101)+H101*2 -> 317 | J101: 128
A102: 100 | B102: 金華國中 | C102: 80 | D102: 80 | E102: 80 | F102: 80 | G102: 80 | H102: 6 | I102: =SUM(C102:G102)+H102*2 -> 412 | J102: 1
A103: 101 | B103: 金華國中 | C103: 55 | D103: 71 | E103: 79 | F103: 71 | G103: 79 | H103: 6 | I103: =SUM(C103:G103)+H103*2 -> 367 | J103: 20
A104: 102 | B104: 金華國中 | C104: 61 | D104: 50 | E104: 79 | F104: 79 | G104: 77 | H104: 5 | I104: =SUM(C104:G104)+H104*2 -> 356 | J104: 29
A105: 103 | B105: 金華國中 | C105: 76 | D105: 64 | E105: 51 | F105: 73 | G105: 63 | H105: 3 | I105: =SUM(C105:G105)+H105*2 -> 333 | J105: 88
A106: 104 | B106: 金華國中 | C106: 50 | D106: 60 | E106: 59 | F106: 68 | G106: 78 | H106: 1 | I106: =SUM(C106:G106)+H106*2 -> 317 | J106: 130
A107: 105 | B107: 金華國中 | C107: 80 | D107: 67 | E107: 79 | F107: 56 | G107: 79 | H107: 5 | I107: =SUM(C107:G107)+H107*2 -> 371 | J107: 18
A108: 106 | B108: 金華國中 | C108: 59 | D108: 53 | E108: 79 | F108: 72 | G108: 61 | H108: 6 | I108: =SUM(C108:G108)+H108*2 -> 336 | J108: 78
A109: 107 | B109: 金華國中 | C109: 51 | D109: 60 | E109: 64 | F109: 65 | G109: 70 | H109: 5 | I109: =SUM(C109:G109)+H109*2 -> 320 | J109: 118
A110: 108 | B110: 金華國中 | C110: 58 | D110: 61 | E110: 71 | F110: 70 | G110: 50 | H110: 1 | I110: =SUM(C110:G110)+H110*2 -> 312 | J110: 138
A111: 109 | B111: 金華國中 | C111: 56 | D111: 76 | E111: 64 | F111: 59 | G111: 53 | H111: 1 | I111: =SUM(C111:G111)+H111*2 -> 310 | J111: 141
A112: 110 | B112: 金華國中 | C112: 72 | D112: 73 | E112: 54 | F112: 70 | G112: 56 | H112: 3 | I112: =SUM(C112:G112)+H112*2 -> 331 | J112: 94
A113: 111 | B113: 金華國中 | C113: 62 | D113: 65 | E113: 76 | F113: 69 | G113: 55 | H113: 4 | I113: =SUM(C113:G113)+H113*2 -> 335 | J113: 80
A114: 112 | B114: 金華國中 | C114: 64 | D114: 56 | E114: 51 | F114: 63 | G114: 70 | H114: 3 | I114: =SUM(C114:G114)+H114*2 -> 310 | J114: 139
A115: 113 | B115: 金華國中 | C115: 80 | D115: 80 | E115: 80 | F115: 80 | G115: 78 | H115: 6 | I115: =SUM(C115:G115)+H115*2 -> 410 | J115: 2
A116: 114 | B116: 金華國中 | C116: 54 | D116: 74 | E116: 58 | F116: 59 | G116: 80 | H116: 4 | I116: =SUM(C116:G116)+H116*2 -> 333 | J116: 87
A117: 115 | B117: 龍門國中 | C117: 68 | D117: 64 | E117: 50 | F117: 53 | G117: 54 | H117: 5 | I117: =SUM(C117:G117)+H117*2 -> 299 | J117: 150
A118: 116 | B118: 龍門國中 | C118: 78 | D118: 72 | E118: 68 | F118: 73 | G118: 53 | H118: 4 | I118: =SUM(C118:G118)+H118*2 -> 352 | J118: 40
A119: 117 | B119: 龍門國中 | C119: 66 | D119: 62 | E119: 50 | F119: 58 | G119: 55 | H119: 1 | I119: =SUM(C119:G119)+H119*2 -> 293 | J119: 155
A120: 118 | B120: 龍門國中 | C120: 70 | D120: 57 | E120: 54 | F120: 80 | G120: 76 | H120: 4 | I120: =SUM(C120:G120)+H120*2 -> 345 | J120: 50
A121: 119 | B121: 龍門國中 | C121: 80 | D121: 80 | E121: 80 | F121: 80 | G121: 80 | H121: 5 | I121: =SUM(C121:G121)+H121*2 -> 410 | J121: 3
A122: 120 | B122: 龍門國中 | C122: 73 | D122: 52 | E122: 69 | F122: 63 | G122: 74 | H122: 1 | I122: =SUM(C122:G122)+H122*2 -> 333 | J122: 89
A123: 121 | B123: 龍門國中 | C123: 61 | D123: 64 | E123: 52 | F123: 68 | G123: 79 | H123: 4 | I123: =SUM(C123:G123)+H123*2 -> 332 | J123: 91
A124: 122 | B124: 龍門國中 | C124: 76 | D124: 78 | E124: 62 | F124: 70 | G124: 79 | H124: 6 | I124: =SUM(C124:G124)+H124*2 -> 377 | J124: 15
A125: 123 | B125: 龍門國中 | C125: 54 | D125: 77 | E125: 80 | F125: 66 | G125: 61 | H125: 1 | I125: =SUM(C125:G125)+H125*2 -> 340 | J125: 65
A126: 124 | B126: 龍門國中 | C126: 71 | D126: 75 | E126: 50 | F126: 63 | G126: 74 | H126: 6 | I126: =SUM(C126:G126)+H126*2 -> 345 | J126: 48
A127: 125 | B127: 龍門國中 | C127: 75 | D127: 71 | E127: 63 | F127: 70 | G127: 50 | H127: 5 | I127: =SUM(C127:G127)+H127*2 -> 339 | J127: 67
A128: 126 | B128: 龍門國中 | C128: 80 | D128: 80 | E128: 78 | F128: 80 | G128: 80 | H128: 5 | I128: =SUM(C128:G128)+H128*2 -> 408 | J128: 7
A129: 127 | B129: 龍門國中 | C129: 55 | D129: 64 | E129: 61 | F129: 58 | G129: 60 | H129: 2 | I129: =SUM(C129:G129)+H129*2 -> 302 | J129: 148
A130: 128 | B130: 龍門國中 | C130: 78 | D130: 52 | E130: 63 | F130: 53 | G130: 65 | H130: 2 | I130: =SUM(C130:G130)+H130*2 -> 315 | J130: 133
A131: 129 | B131: 龍門國中 | C131: 52 | D131: 65 | E131: 56 | F131: 80 | G131: 69 | H131: 3 | I131: =SUM(C131:G131)+H131*2 -> 328 | J131: 103
A132: 130 | B132: 龍門國中 | C132: 65 | D132: 54 | E132: 73 | F132: 57 | G132: 58 | H132: 6 | I132: =SUM(C132:G132)+H132*2 -> 319 | J132: 121
A133: 131 | B133: 龍門國中 | C133: 78 | D133: 76 | E133: 80 | F133: 57 | G133: 53 | H133: 6 | I133: =SUM(C133:G133)+H133*2 -> 356 | J133: 28
A134: 132 | B134: 龍門國中 | C134: 79 | D134: 75 | E134: 67 | F134: 73 | G134: 77 | H134: 5 | I134: =SUM(C134:G134)+H134*2 -> 381 | J134: 14
A135: 133 | B135: 龍門國中 | C135: 80 | D135: 54 | E135: 71 | F135: 63 | G135: 62 | H135: 1 | I135: =SUM(C135:G135)+H135*2 -> 332 | J135: 93
A136: 134 | B136: 龍門國中 | C136: 74 | D136: 79 | E136: 67 | F136: 60 | G136: 50 | H136: 2 | I136: =SUM(C136:G136)+H136*2 -> 334 | J136: 84
A137: 135 | B137: 龍門國中 | C137: 51 | D137: 68 | E137: 70 | F137: 76 | G137: 77 | H137: 6 | I137: =SUM(C137:G137)+H137*2 -> 354 | J137: 33
A138: 136 | B138: 龍門國中 | C138: 69 | D138: 62 | E138: 70 | F138: 69 | G138: 64 | H138: 2 | I138: =SUM(C138:G138)+H138*2 -> 338 | J138: 70
A139: 137 | B139: 龍門國中 | C139: 53 | D139: 56 | E139: 72 | F139: 65 | G139: 66 | H139: 6 | I139: =SUM(C139:G139)+H139*2 -> 324 | J139: 110
A140: 138 | B140: 龍門國中 | C140: 68 | D140: 75 | E140: 74 | F140: 77 | G140: 60 | H140: 5 | I140: =SUM(C140:G140)+H140*2 -> 364 | J140: 22
A141: 139 | B141: 龍門國中 | C141: 56 | D141: 57 | E141: 51 | F141: 58 | G141: 55 | H141: 5 | I141: =SUM(C141:G141)+H141*2 -> 287 | J141: 159
A142: 140 | B142: 龍門國中 | C142: 66 | D142: 50 | E142: 60 | F142: 72 | G142: 77 | H142: 1 | I142: =SUM(C142:G142)+H142*2 -> 327 | J142: 107
A143: 141 | B143: 龍門國中 | C143: 78 | D143: 80 | E143: 78 | F143: 80 | G143: 80 | H143: 6 | I143: =SUM(C143:G143)+H143*2 -> 408 | J143: 4
A144: 142 | B144: 龍門國中 | C144: 60 | D144: 56 | E144: 75 | F144: 74 | G144: 69 | H144: 3 | I144: =SUM(C144:G144)+H144*2 -> 340 | J144: 63
A145: 143 | B145: 大安國中 | C145: 51 | D145: 61 | E145: 54 | F145: 59 | G145: 79 | H145: 1 | I145: =SUM(C145:G145)+H145*2 -> 306 | J145: 146
A146: 144 | B146: 大安國中 | C146: 59 | D146: 59 | E146: 70 | F146: 77 | G146: 63 | H146: 2 | I146: =SUM(C146:G146)+H146*2 -> 332 | J146: 92
A147: 145 | B147: 大安國中 | C147: 61 | D147: 73 | E147: 51 | F147: 80 | G147: 57 | H147: 5 | I147: =SUM(C147:G147)+H147*2 -> 332 | J147: 90
A148: 146 | B148: 大安國中 | C148: 79 | D148: 60 | E148: 72 | F148: 80 | G148: 75 | H148: 4 | I148: =SUM(C148:G148)+H148*2 -> 374 | J148: 17
A149: 147 | B149: 大安國中 | C149: 59 | D149: 75 | E149: 78 | F149: 50 | G149: 78 | H149: 6 | I149: =SUM(C149:G149)+H149*2 -> 352 | J149: 38
A150: 148 | B150: 大安國中 | C150: 80 | D150: 78 | E150: 80 | F150: 80 | G150: 80 | H150: 1 | I150: =SUM(C150:G150)+H150*2 -> 400 | J150: 12
A151: 149 | B151: 大安國中 | C151: 75 | D151: 67 | E151: 63 | F151: 80 | G151: 51 | H151: 1 | I151: =SUM(C151:G151)+H151*2 -> 338 | J151: 71
A152: 150 | B152: 大安國中 | C152: 62 | D152: 78 | E152: 58 | F152: 80 | G152: 73 | H152: 1 | I152: =SUM(C152:G152)+H152*2 -> 353 | J152: 37
A153: 151 | B153: 大安國中 | C153: 50 | D153: 57 | E153: 69 | F153: 66 | G153: 68 | H153: 6 | I153: =SUM(C153:G153)+H153*2 -> 322 | J153: 115
A154: 152 | B154: 大安國中 | C154: 67 | D154: 54 | E154: 74 | F154: 67 | G154: 68 | H154: 4 | I154: =SUM(C154:G154)+H154*2 -> 338 | J154: 69
A155: 153 | B155: 大安國中 | C155: 71 | D155: 52 | E155: 64 | F155: 62 | G155: 75 | H155: 2 | I155: =SUM(C155:G155)+H155*2 -> 328 | J155: 104
A156: 154 | B156: 大安國中 | C156: 76 | D156: 65 | E156: 66 | F156: 55 | G156: 71 | H156: 2 | I156: =SUM(C156:G156)+H156*2 -> 337 | J156: 74
A157: 155 | B157: 大安國中 | C157: 76 | D157: 72 | E157: 64 | F157: 62 | G157: 53 | H157: 6 | I157: =SUM(C157:G157)+H157*2 -> 339 | J157: 66
A158: 156 | B158: 大安國中 | C158: 80 | D158: 80 | E158: 80 | F158: 80 | G158: 80 | H158: 4 | I158: =SUM(C158:G158)+H158*2 -> 408 | J158: 9
A159: 157 | B159: 大安國中 | C159: 78 | D159: 78 | E159: 80 | F159: 80 | G159: 80 | H159: 5 | I159: =SUM(C159:G159)+H159*2 -> 406 | J159: 11
A160: 158 | B160: 大安國中 | C160: 59 | D160: 70 | E160: 73 | F160: 67 | G160: 60 | H160: 1 | I160: =SUM(C160:G160)+H160*2 -> 331 | J160: 96
A161: 159 | B161: 大安國中 | C161: 78 | D161: 58 | E161: 69 | F161: 51 | G161: 58 | H161: 1 | I161: =SUM(C161:G161)+H161*2 -> 316 | J161: 131
A162: 160 | B162: 大安國中 | C162: 77 | D162: 51 | E162: 59 | F162: 77 | G162: 69 | H162: 5 | I162: =SUM(C162:G162)+H162*2 -> 343 | J162: 53

Sheet 工作表2

Sheet 工作表3
